[Event "Titled Tuesday Blitz April 05 Late 2022"]
[White "Koziorowicz, Michal"]
[Black "Wesolowska, Hanna"]
[WhiteFideId "21809194"]
[BlackFideId "1104683"]
[WhiteElo "2235"]
[BlackElo "2340"]
[Result "1-0"]
[Round "01"]
[TimeControl "180+1"]
[Date "2022.04.06"]
[WhiteClock "0:00:48"]
[BlackClock "0:00:12"]

1. e4 {[%clk 0:03:00]}  c5 {[%clk 0:02:52]} 2. Nf3 {[%clk 0:02:32]}  d6 {[%clk 0:02:51]} 3. Bb5+ {[%clk 0:02:31]}  Bd7 {[%clk 0:02:48]} 4. Bxd7+ {[%clk 0:02:31]}  Qxd7 {[%clk 0:02:49]} 5. O-O {[%clk 0:02:32]}  Nf6 {[%clk 0:02:49]} 6. Re1 {[%clk 0:02:31]}  Nc6 {[%clk 0:02:48]} 7. c3 {[%clk 0:02:32]}  g6 {[%clk 0:02:48]} 8. d4 {[%clk 0:02:32]}  cxd4 {[%clk 0:02:49]} 9. cxd4 {[%clk 0:02:33]}  Bg7 {[%clk 0:02:48]} 10. Nc3 {[%clk 0:02:34]}  O-O {[%clk 0:02:48]} 11. Bg5 {[%clk 0:02:33]}  Rac8 {[%clk 0:02:47]} 12. h3 {[%clk 0:02:25]}  h6 {[%clk 0:02:38]} 13. Bh4 {[%clk 0:02:17]}  g5 {[%clk 0:02:38]} 14. Bg3 {[%clk 0:02:18]}  Nh5 {[%clk 0:02:25]} 15. d5 {[%clk 0:02:15]}  Nb4 {[%clk 0:02:19]} 16. a3 {[%clk 0:02:03]}  Nxg3 {[%clk 0:02:11]} 17. axb4 {[%clk 0:02:03]}  Nh5 {[%clk 0:02:06]} 18. Rxa7 {[%clk 0:02:03]}  Nf4 {[%clk 0:01:57]} 19. Nd4 {[%clk 0:02:02]}  Rc4 {[%clk 0:01:54]} 20. Nf5 {[%clk 0:01:59]}  Rxb4 {[%clk 0:01:47]} 21. Na2 {[%clk 0:01:44]}  Rxb2 {[%clk 0:01:43]} 22. Nxg7 {[%clk 0:01:44]}  Rxa2 {[%clk 0:01:26]} 23. Rxa2 {[%clk 0:01:42]}  Kxg7 {[%clk 0:01:27]} 24. Qd4+ {[%clk 0:01:39]}  Kh7 {[%clk 0:01:20]} 25. Rb1 {[%clk 0:01:39]}  Ra8 {[%clk 0:01:13]} 26. Rab2 {[%clk 0:01:37]}  Ra4 {[%clk 0:01:07]} 27. Qe3 {[%clk 0:01:35]}  b5 {[%clk 0:00:37]} 28. Rxb5 {[%clk 0:01:33]}  Ra1 {[%clk 0:00:37]} 29. Rxa1 {[%clk 0:01:28]}  Qxb5 {[%clk 0:00:37]} 30. g3 {[%clk 0:01:27]}  Nxh3+ {[%clk 0:00:24]} 31. Kg2 {[%clk 0:01:28]}  g4 {[%clk 0:00:25]} 32. Ra7 {[%clk 0:01:24]}  Qb2 {[%clk 0:00:19]} 33. Rc7 {[%clk 0:01:10]}  Qf6 {[%clk 0:00:18]} 34. Rc2 {[%clk 0:00:53]}  Ng5 {[%clk 0:00:18]} 35. Qf4 {[%clk 0:00:51]}  Qd4 {[%clk 0:00:15]} 36. Qxg4 {[%clk 0:00:46]}  Qxe4+ {[%clk 0:00:13]} 37. Qxe4+ {[%clk 0:00:46]}  Nxe4 {[%clk 0:00:14]} 38. Re2 {[%clk 0:00:47]}  Nf6 {[%clk 0:00:14]} 39. Rxe7 {[%clk 0:00:47]}  Nxd5 {[%clk 0:00:15]} 40. Rxf7+ {[%clk 0:00:47]}  Kg6 {[%clk 0:00:16]} 41. Rd7 {[%clk 0:00:47]}  Nc3 {[%clk 0:00:15]} 42. Rxd6+ {[%clk 0:00:47]}  Kg5 {[%clk 0:00:15]} 43. Kf3 {[%clk 0:00:47]}  h5 {[%clk 0:00:13]} 44. Rc6 {[%clk 0:00:47]}  Nb5 {[%clk 0:00:12]} 45. Rc5+ {[%clk 0:00:48]} 1-0


[Site "https://www.chess.com"]

[Event "Titled Tuesday Blitz April 05 Late 2022"]
[White "Ladan, Nicholas"]
[Black "Kosteniuk, Alexandra"]
[WhiteFideId "30918855"]
[BlackFideId "4128125"]
[WhiteElo "2167"]
[BlackElo "2469"]
[Result "1-0"]
[Round "01"]
[TimeControl "180+1"]
[Date "2022.04.06"]
[WhiteClock "0:00:10"]
[BlackClock "0:00:29"]

1. d4 {[%clk 0:02:59]}  Nf6 {[%clk 0:02:59]} 2. Nf3 {[%clk 0:02:56]}  d5 {[%clk 0:02:58]} 3. g3 {[%clk 0:02:57]}  c5 {[%clk 0:02:56]} 4. Bg2 {[%clk 0:02:57]}  cxd4 {[%clk 0:02:56]} 5. Nxd4 {[%clk 0:02:58]}  e5 {[%clk 0:02:56]} 6. Nb3 {[%clk 0:02:57]}  Nc6 {[%clk 0:02:54]} 7. O-O {[%clk 0:02:58]}  Be7 {[%clk 0:02:53]} 8. Nc3 {[%clk 0:02:54]}  Be6 {[%clk 0:02:52]} 9. Bg5 {[%clk 0:02:52]}  d4 {[%clk 0:02:52]} 10. Bxf6 {[%clk 0:02:50]}  Bxf6 {[%clk 0:02:52]} 11. Ne4 {[%clk 0:02:50]}  O-O {[%clk 0:02:48]} 12. Nbc5 {[%clk 0:02:41]}  Be7 {[%clk 0:02:48]} 13. Nxe6 {[%clk 0:02:35]}  fxe6 {[%clk 0:02:48]} 14. Qd3 {[%clk 0:02:25]}  Nb4 {[%clk 0:02:45]} 15. Qb3 {[%clk 0:02:24]}  Qb6 {[%clk 0:02:31]} 16. Bh3 {[%clk 0:02:09]}  Kh8 {[%clk 0:02:32]} 17. Qxe6 {[%clk 0:01:55]}  Nxc2 {[%clk 0:02:05]} 18. Rac1 {[%clk 0:01:47]}  Qxe6 {[%clk 0:02:04]} 19. Bxe6 {[%clk 0:01:46]}  d3 {[%clk 0:01:57]} 20. exd3 {[%clk 0:01:38]}  Nd4 {[%clk 0:01:57]} 21. Rc7 {[%clk 0:01:26]}  Bd8 {[%clk 0:01:52]} 22. Rc8 {[%clk 0:01:10]}  Rxc8 {[%clk 0:01:33]} 23. Bxc8 {[%clk 0:01:11]}  b5 {[%clk 0:01:33]} 24. Bb7 {[%clk 0:01:06]}  Bb6 {[%clk 0:01:33]} 25. Kg2 {[%clk 0:01:03]}  Nc2 {[%clk 0:01:21]} 26. Rc1 {[%clk 0:01:01]}  Nb4 {[%clk 0:01:21]} 27. Rc8 {[%clk 0:00:31]}  Rxc8 {[%clk 0:01:20]} 28. Bxc8 {[%clk 0:00:32]}  Nxd3 {[%clk 0:01:20]} 29. Ba6 {[%clk 0:00:29]}  Nxb2 {[%clk 0:01:18]} 30. Bxb5 {[%clk 0:00:29]}  g6 {[%clk 0:01:16]} 31. Kf3 {[%clk 0:00:28]}  Kg7 {[%clk 0:01:16]} 32. Ke2 {[%clk 0:00:28]}  Bd4 {[%clk 0:01:12]} 33. Kd2 {[%clk 0:00:25]}  Kf7 {[%clk 0:01:09]} 34. f3 {[%clk 0:00:17]}  Ke7 {[%clk 0:01:08]} 35. Kc2 {[%clk 0:00:17]}  h6 {[%clk 0:01:00]} 36. Nd2 {[%clk 0:00:18]}  e4 {[%clk 0:00:51]} 37. fxe4 {[%clk 0:00:17]}  Kd6 {[%clk 0:00:46]} 38. Nc4+ {[%clk 0:00:14]}  Nxc4 {[%clk 0:00:43]} 39. Bxc4 {[%clk 0:00:15]}  Ke5 {[%clk 0:00:43]} 40. Kd3 {[%clk 0:00:14]}  Bg1 {[%clk 0:00:43]} 41. h3 {[%clk 0:00:13]}  g5 {[%clk 0:00:42]} 42. g4 {[%clk 0:00:13]}  Bb6 {[%clk 0:00:42]} 43. Bb5 {[%clk 0:00:13]}  Kf4 {[%clk 0:00:41]} 44. Bd7 {[%clk 0:00:13]}  Kg3 {[%clk 0:00:36]} 45. e5 {[%clk 0:00:13]}  Kxh3 {[%clk 0:00:35]} 46. Kc4 {[%clk 0:00:12]}  Kh4 {[%clk 0:00:34]} 47. Kd5 {[%clk 0:00:09]}  h5 {[%clk 0:00:34]} 48. gxh5 {[%clk 0:00:09]}  Kxh5 {[%clk 0:00:35]} 49. e6 {[%clk 0:00:09]}  Bd8 {[%clk 0:00:33]} 50. Kd6 {[%clk 0:00:08]}  g4 {[%clk 0:00:32]} 51. e7 {[%clk 0:00:08]}  Bxe7+ {[%clk 0:00:32]} 52. Kxe7 {[%clk 0:00:09]}  g3 {[%clk 0:00:32]} 53. Bc6 {[%clk 0:00:09]}  Kg5 {[%clk 0:00:30]} 54. a4 {[%clk 0:00:09]}  Kf5 {[%clk 0:00:29]} 55. Kd6 {[%clk 0:00:10]} 1-0


[Site "https://www.chess.com"]

[Event "Titled Tuesday Blitz April 05 Late 2022"]
[White "Liang, Jason"]
[Black "Bowden, Karl"]
[WhiteFideId "30940303"]
[BlackFideId "400548"]
[WhiteElo "1976"]
[BlackElo "2356"]
[Result "1-0"]
[Round "01"]
[TimeControl "180+1"]
[Date "2022.04.06"]
[WhiteClock "0:00:47"]
[BlackClock "0:00:06"]

1. d3 {[%clk 0:02:57]}  e5 {[%clk 0:02:58]} 2. c4 {[%clk 0:02:57]}  Nc6 {[%clk 0:02:49]} 3. Nf3 {[%clk 0:02:55]}  g6 {[%clk 0:02:46]} 4. Nc3 {[%clk 0:02:53]}  Bg7 {[%clk 0:02:45]} 5. g3 {[%clk 0:02:48]}  Nge7 {[%clk 0:02:35]} 6. Bg2 {[%clk 0:02:48]}  O-O {[%clk 0:02:35]} 7. O-O {[%clk 0:02:48]}  d6 {[%clk 0:02:35]} 8. Rb1 {[%clk 0:02:47]}  Rb8 {[%clk 0:02:28]} 9. b4 {[%clk 0:02:40]}  a6 {[%clk 0:02:27]} 10. Bd2 {[%clk 0:02:32]}  f5 {[%clk 0:02:19]} 11. b5 {[%clk 0:02:15]}  axb5 {[%clk 0:02:12]} 12. cxb5 {[%clk 0:02:16]}  Nd4 {[%clk 0:01:58]} 13. e3 {[%clk 0:01:49]}  Nxf3+ {[%clk 0:01:39]} 14. Bxf3 {[%clk 0:01:48]}  Be6 {[%clk 0:01:15]} 15. Qc2 {[%clk 0:01:48]}  f4 {[%clk 0:00:53]} 16. exf4 {[%clk 0:01:47]}  exf4 {[%clk 0:00:51]} 17. Rbe1 {[%clk 0:01:45]}  Bh3 {[%clk 0:00:48]} 18. Bg2 {[%clk 0:01:45]}  Bxg2 {[%clk 0:00:25]} 19. Kxg2 {[%clk 0:01:46]}  f3+ {[%clk 0:00:21]} 20. Kg1 {[%clk 0:01:46]}  Nf5 {[%clk 0:00:16]} 21. Qb3+ {[%clk 0:01:47]}  Kh8 {[%clk 0:00:16]} 22. Qd5 {[%clk 0:01:44]}  Nd4 {[%clk 0:00:14]} 23. Be3 {[%clk 0:01:43]}  Qd7 {[%clk 0:00:14]} 24. Bxd4 {[%clk 0:00:46]}  Qh3 {[%clk 0:00:13]} 25. Bxg7+ {[%clk 0:00:47]}  Kxg7 {[%clk 0:00:13]} 26. Qd4+ {[%clk 0:00:47]}  Kg8 {[%clk 0:00:09]} 27. Qc4+ {[%clk 0:00:47]}  Kg7 {[%clk 0:00:06]} 28. Re7+ {[%clk 0:00:47]} 1-0


[Site "https://www.chess.com"]

[Event "Titled Tuesday Blitz April 05 Late 2022"]
[White "Melikhov, Evgeny V."]
[Black "Hasangatin, Ramil"]
[WhiteFideId "4122046"]
[BlackFideId "4122160"]
[WhiteElo "1931"]
[BlackElo "2375"]
[Result "0-1"]
[Round "01"]
[TimeControl "180+1"]
[Date "2022.04.06"]
[WhiteClock "0:00:05"]
[BlackClock "0:01:39"]

1. d4 {[%clk 0:02:59]}  Nf6 {[%clk 0:02:53]} 2. c4 {[%clk 0:02:59]}  d6 {[%clk 0:02:52]} 3. Nc3 {[%clk 0:02:57]}  e5 {[%clk 0:02:52]} 4. dxe5 {[%clk 0:02:45]}  dxe5 {[%clk 0:02:51]} 5. Qxd8+ {[%clk 0:02:44]}  Kxd8 {[%clk 0:02:52]} 6. b3 {[%clk 0:02:44]}  c6 {[%clk 0:02:38]} 7. Bb2 {[%clk 0:02:43]}  Kc7 {[%clk 0:02:36]} 8. O-O-O {[%clk 0:02:43]}  Nfd7 {[%clk 0:02:36]} 9. Nf3 {[%clk 0:02:41]}  f6 {[%clk 0:02:36]} 10. g4 {[%clk 0:02:32]}  Nc5 {[%clk 0:02:34]} 11. g5 {[%clk 0:02:23]}  a5 {[%clk 0:02:25]} 12. e4 {[%clk 0:01:12]}  Bg4 {[%clk 0:02:13]} 13. Be2 {[%clk 0:01:07]}  Nba6 {[%clk 0:02:13]} 14. Rhg1 {[%clk 0:01:02]}  Be6 {[%clk 0:02:08]} 15. gxf6 {[%clk 0:00:56]}  gxf6 {[%clk 0:02:06]} 16. Nxe5 {[%clk 0:00:20]}  Bh6+ {[%clk 0:01:53]} 17. Kb1 {[%clk 0:00:18]}  fxe5 {[%clk 0:01:54]} 18. Nd5+ {[%clk 0:00:18]}  cxd5 {[%clk 0:01:52]} 19. cxd5 {[%clk 0:00:18]}  Bd7 {[%clk 0:01:43]} 20. Bxe5+ {[%clk 0:00:17]}  Kb6 {[%clk 0:01:43]} 21. Bxh8 {[%clk 0:00:17]}  Rxh8 {[%clk 0:01:44]} 22. e5 {[%clk 0:00:13]}  Bf5+ {[%clk 0:01:43]} 23. Kb2 {[%clk 0:00:11]}  Nb4 {[%clk 0:01:40]} 24. a3 {[%clk 0:00:09]}  Nbd3+ {[%clk 0:01:40]} 25. Ka2 {[%clk 0:00:05]}  Nxe5 {[%clk 0:01:39]} 0-1


[Site "https://www.chess.com"]

[Event "Titled Tuesday Blitz April 05 Late 2022"]
[White "Mikhailov, Viacheslav"]
[Black "Gatterer, Florian"]
[WhiteFideId "4187369"]
[BlackFideId "811688"]
[WhiteElo "2381"]
[BlackElo "2218"]
[Result "1-0"]
[Round "01"]
[TimeControl "180+1"]
[Date "2022.04.06"]
[WhiteClock "0:00:35"]
[BlackClock "0:00:01"]

1. Nf3 {[%clk 0:03:00]}  Nf6 {[%clk 0:02:59]} 2. g3 {[%clk 0:03:00]}  g6 {[%clk 0:02:58]} 3. Bg2 {[%clk 0:03:01]}  Bg7 {[%clk 0:02:58]} 4. O-O {[%clk 0:03:02]}  d5 {[%clk 0:02:58]} 5. c4 {[%clk 0:03:03]}  c6 {[%clk 0:02:58]} 6. cxd5 {[%clk 0:03:03]}  cxd5 {[%clk 0:02:57]} 7. d3 {[%clk 0:03:04]}  O-O {[%clk 0:02:56]} 8. Nc3 {[%clk 0:03:04]}  Nc6 {[%clk 0:02:56]} 9. Bf4 {[%clk 0:03:04]}  a6 {[%clk 0:02:50]} 10. Ne5 {[%clk 0:03:02]}  Nxe5 {[%clk 0:02:45]} 11. Bxe5 {[%clk 0:02:59]}  e6 {[%clk 0:02:45]} 12. a4 {[%clk 0:02:57]}  Nd7 {[%clk 0:02:32]} 13. Bxg7 {[%clk 0:02:58]}  Kxg7 {[%clk 0:02:32]} 14. a5 {[%clk 0:02:58]}  Nf6 {[%clk 0:02:22]} 15. Qb3 {[%clk 0:02:57]}  Rb8 {[%clk 0:02:21]} 16. Rfc1 {[%clk 0:02:57]}  Bd7 {[%clk 0:02:20]} 17. e4 {[%clk 0:02:47]}  dxe4 {[%clk 0:02:12]} 18. dxe4 {[%clk 0:02:48]}  e5 {[%clk 0:02:12]} 19. Nd5 {[%clk 0:02:40]}  Be6 {[%clk 0:02:03]} 20. Rd1 {[%clk 0:02:33]}  Bxd5 {[%clk 0:01:52]} 21. exd5 {[%clk 0:02:34]}  Qd6 {[%clk 0:01:52]} 22. Rac1 {[%clk 0:02:32]}  h5 {[%clk 0:01:36]} 23. h3 {[%clk 0:02:30]}  Rfe8 {[%clk 0:01:24]} 24. Qb6 {[%clk 0:02:26]}  Red8 {[%clk 0:01:07]} 25. Rc7 {[%clk 0:02:22]}  Qxb6 {[%clk 0:01:00]} 26. axb6 {[%clk 0:02:23]}  Rd6 {[%clk 0:01:00]} 27. Rd2 {[%clk 0:02:16]}  a5 {[%clk 0:00:59]} 28. Rc5 {[%clk 0:02:13]}  Rxb6 {[%clk 0:00:49]} 29. Rxa5 {[%clk 0:02:13]}  Rd8 {[%clk 0:00:49]} 30. Kh2 {[%clk 0:02:10]}  Ne8 {[%clk 0:00:44]} 31. Rc5 {[%clk 0:02:05]}  Nd6 {[%clk 0:00:34]} 32. Rc7 {[%clk 0:02:02]}  Ra8 {[%clk 0:00:21]} 33. Rdc2 {[%clk 0:01:56]}  Ra2 {[%clk 0:00:20]} 34. Rd7 {[%clk 0:01:56]}  Kf6 {[%clk 0:00:16]} 35. h4 {[%clk 0:01:26]}  Ra5 {[%clk 0:00:16]} 36. b3 {[%clk 0:01:13]}  e4 {[%clk 0:00:15]} 37. Re2 {[%clk 0:01:10]}  Rxd5 {[%clk 0:00:05]} 38. Bxe4 {[%clk 0:01:07]}  Rd4 {[%clk 0:00:05]} 39. Bg2 {[%clk 0:01:07]}  Kg7 {[%clk 0:00:05]} 40. Ree7 {[%clk 0:01:06]}  Rxb3 {[%clk 0:00:04]} 41. Rxf7+ {[%clk 0:01:05]}  Nxf7 {[%clk 0:00:04]} 42. Rxd4 {[%clk 0:01:06]}  Rb2 {[%clk 0:00:04]} 43. Kg1 {[%clk 0:01:05]}  Kf6 {[%clk 0:00:04]} 44. Rd7 {[%clk 0:01:01]}  Ne5 {[%clk 0:00:03]} 45. Rd6+ {[%clk 0:01:01]}  Ke7 {[%clk 0:00:03]} 46. Rd1 {[%clk 0:00:59]}  b5 {[%clk 0:00:03]} 47. Be4 {[%clk 0:00:57]}  Ng4 {[%clk 0:00:02]} 48. Bxg6 {[%clk 0:00:55]}  Nxf2 {[%clk 0:00:02]} 49. Re1+ {[%clk 0:00:55]}  Kf6 {[%clk 0:00:02]} 50. Bxh5 {[%clk 0:00:46]}  Nh3+ {[%clk 0:00:02]} 51. Kh1 {[%clk 0:00:47]}  Nf2+ {[%clk 0:00:02]} 52. Kg2 {[%clk 0:00:43]}  Nd3+ {[%clk 0:00:02]} 53. Re2 {[%clk 0:00:43]}  Rxe2+ {[%clk 0:00:01]} 54. Bxe2 {[%clk 0:00:44]}  Ne5 {[%clk 0:00:02]} 55. Bxb5 {[%clk 0:00:44]}  Ng4 {[%clk 0:00:02]} 56. Be2 {[%clk 0:00:44]}  Ne3+ {[%clk 0:00:02]} 57. Kf3 {[%clk 0:00:45]}  Nc2 {[%clk 0:00:02]} 58. Ke4 {[%clk 0:00:42]}  Nb4 {[%clk 0:00:02]} 59. g4 {[%clk 0:00:42]}  Nc6 {[%clk 0:00:03]} 60. g5+ {[%clk 0:00:42]}  Kg7 {[%clk 0:00:02]} 61. h5 {[%clk 0:00:42]}  Ne7 {[%clk 0:00:03]} 62. Bd3 {[%clk 0:00:41]}  Kh8 {[%clk 0:00:03]} 63. h6 {[%clk 0:00:39]}  Ng6 {[%clk 0:00:03]} 64. Kf5 {[%clk 0:00:38]}  Nh4+ {[%clk 0:00:03]} 65. Kf6 {[%clk 0:00:35]}  Kg8 {[%clk 0:00:03]} 66. Be4 {[%clk 0:00:33]}  Kh8 {[%clk 0:00:03]} 67. Ke5 {[%clk 0:00:34]}  Kg8 {[%clk 0:00:03]} 68. Kf4 {[%clk 0:00:34]}  Kh8 {[%clk 0:00:03]} 69. Kg4 {[%clk 0:00:35]}  Ng6 {[%clk 0:00:01]} 70. Bxg6 {[%clk 0:00:35]} 1-0


[Site "https://www.chess.com"]

[Event "Titled Tuesday Blitz April 05 Late 2022"]
[White "Najer, Evgeniy"]
[Black "Ishbaev, Alibek"]
[WhiteFideId "4118987"]
[BlackFideId "14205017"]
[WhiteElo "2562"]
[BlackElo "2280"]
[Result "1-0"]
[Round "01"]
[TimeControl "180+1"]
[Date "2022.04.06"]
[WhiteClock "0:00:02"]
[BlackClock "0:00:05"]

1. d4 {[%clk 0:02:58]}  e6 {[%clk 0:02:55]} 2. e4 {[%clk 0:02:57]}  d5 {[%clk 0:02:55]} 3. Nc3 {[%clk 0:02:58]}  dxe4 {[%clk 0:02:55]} 4. Nxe4 {[%clk 0:02:58]}  Bd7 {[%clk 0:02:56]} 5. Nf3 {[%clk 0:02:56]}  Bc6 {[%clk 0:02:56]} 6. Bd3 {[%clk 0:02:57]}  Nd7 {[%clk 0:02:57]} 7. O-O {[%clk 0:02:54]}  Ngf6 {[%clk 0:02:57]} 8. Ned2 {[%clk 0:02:53]}  b5 {[%clk 0:02:52]} 9. a4 {[%clk 0:02:47]}  a6 {[%clk 0:02:51]} 10. Qe2 {[%clk 0:02:42]}  bxa4 {[%clk 0:02:40]} 11. Bxa6 {[%clk 0:02:41]}  Be7 {[%clk 0:02:30]} 12. Ne5 {[%clk 0:02:38]}  Nxe5 {[%clk 0:02:28]} 13. dxe5 {[%clk 0:02:37]}  Qd5 {[%clk 0:02:23]} 14. Nf3 {[%clk 0:02:34]}  Ne4 {[%clk 0:02:03]} 15. Rd1 {[%clk 0:02:22]}  Qa5 {[%clk 0:02:02]} 16. Bd3 {[%clk 0:02:15]}  Nc5 {[%clk 0:02:02]} 17. Nd4 {[%clk 0:02:14]}  Nxd3 {[%clk 0:01:57]} 18. Nxc6 {[%clk 0:02:03]}  Nxc1 {[%clk 0:01:54]} 19. Raxc1 {[%clk 0:01:16]}  Qc5 {[%clk 0:01:54]} 20. Nxe7 {[%clk 0:00:37]}  Qxe7 {[%clk 0:01:46]} 21. Qb5+ {[%clk 0:00:36]}  Kf8 {[%clk 0:01:41]} 22. Rd7 {[%clk 0:00:35]}  Qe8 {[%clk 0:01:37]} 23. Qc5+ {[%clk 0:00:30]}  Kg8 {[%clk 0:01:36]} 24. Rcd1 {[%clk 0:00:30]}  h6 {[%clk 0:01:31]} 25. Rxc7 {[%clk 0:00:29]}  Kh7 {[%clk 0:01:28]} 26. h4 {[%clk 0:00:19]}  Rf8 {[%clk 0:01:26]} 27. Rdd7 {[%clk 0:00:17]}  Kg8 {[%clk 0:01:26]} 28. h5 {[%clk 0:00:16]}  Qb8 {[%clk 0:01:18]} 29. Rb7 {[%clk 0:00:15]}  Qc8 {[%clk 0:01:18]} 30. Qxc8 {[%clk 0:00:13]}  Raxc8 {[%clk 0:01:16]} 31. c3 {[%clk 0:00:13]}  Rc4 {[%clk 0:01:11]} 32. Rd4 {[%clk 0:00:10]}  Rxd4 {[%clk 0:00:31]} 33. cxd4 {[%clk 0:00:11]}  Ra8 {[%clk 0:00:32]} 34. g3 {[%clk 0:00:08]}  a3 {[%clk 0:00:32]} 35. bxa3 {[%clk 0:00:08]}  Rxa3 {[%clk 0:00:33]} 36. Kg2 {[%clk 0:00:08]}  Rd3 {[%clk 0:00:30]} 37. Rb8+ {[%clk 0:00:07]}  Kh7 {[%clk 0:00:30]} 38. Rd8 {[%clk 0:00:08]}  Rd1 {[%clk 0:00:27]} 39. g4 {[%clk 0:00:07]}  Rd3 {[%clk 0:00:26]} 40. Kf1 {[%clk 0:00:06]}  Ra3 {[%clk 0:00:24]} 41. Ke2 {[%clk 0:00:06]}  Ra7 {[%clk 0:00:21]} 42. f3 {[%clk 0:00:06]}  Rb7 {[%clk 0:00:21]} 43. Ke3 {[%clk 0:00:06]}  Rb3+ {[%clk 0:00:20]} 44. Ke4 {[%clk 0:00:06]}  Rb7 {[%clk 0:00:20]} 45. Rc8 {[%clk 0:00:06]}  Ra7 {[%clk 0:00:20]} 46. Rc1 {[%clk 0:00:06]}  Rb7 {[%clk 0:00:21]} 47. Ra1 {[%clk 0:00:06]}  Rc7 {[%clk 0:00:21]} 48. Rd1 {[%clk 0:00:06]}  Rd7 {[%clk 0:00:21]} 49. Rb1 {[%clk 0:00:06]}  Rc7 {[%clk 0:00:21]} 50. Rb5 {[%clk 0:00:07]}  Ra7 {[%clk 0:00:20]} 51. Rc5 {[%clk 0:00:07]}  Rd7 {[%clk 0:00:20]} 52. Rc8 {[%clk 0:00:08]}  Ra7 {[%clk 0:00:20]} 53. f4 {[%clk 0:00:04]}  Rd7 {[%clk 0:00:19]} 54. f5 {[%clk 0:00:04]}  Re7 {[%clk 0:00:12]} 55. Rc6 {[%clk 0:00:04]}  Kg8 {[%clk 0:00:10]} 56. Rd6 {[%clk 0:00:04]}  Kh7 {[%clk 0:00:09]} 57. Kf4 {[%clk 0:00:04]}  Kg8 {[%clk 0:00:09]} 58. g5 {[%clk 0:00:04]}  hxg5+ {[%clk 0:00:09]} 59. Kxg5 {[%clk 0:00:05]}  exf5 {[%clk 0:00:09]} 60. Kxf5 {[%clk 0:00:06]}  Ra7 {[%clk 0:00:09]} 61. d5 {[%clk 0:00:02]}  Kf8 {[%clk 0:00:09]} 62. Rd8+ {[%clk 0:00:02]}  Ke7 {[%clk 0:00:09]} 63. Rg8 {[%clk 0:00:02]}  Ra1 {[%clk 0:00:09]} 64. Rxg7 {[%clk 0:00:02]}  Rf1+ {[%clk 0:00:09]} 65. Ke4 {[%clk 0:00:03]}  Rd1 {[%clk 0:00:08]} 66. Rh7 {[%clk 0:00:02]}  Re1+ {[%clk 0:00:08]} 67. Kf4 {[%clk 0:00:02]}  Rf1+ {[%clk 0:00:08]} 68. Ke4 {[%clk 0:00:02]}  Re1+ {[%clk 0:00:09]} 69. Kd4 {[%clk 0:00:03]}  Rd1+ {[%clk 0:00:09]} 70. Kc4 {[%clk 0:00:03]}  Rc1+ {[%clk 0:00:10]} 71. Kb5 {[%clk 0:00:04]}  Rb1+ {[%clk 0:00:10]} 72. Kc4 {[%clk 0:00:04]}  Rc1+ {[%clk 0:00:10]} 73. Kb3 {[%clk 0:00:05]}  Rb1+ {[%clk 0:00:11]} 74. Kc2 {[%clk 0:00:05]}  Re1 {[%clk 0:00:09]} 75. e6 {[%clk 0:00:05]}  Kd6 {[%clk 0:00:10]} 76. exf7 {[%clk 0:00:01]}  Rf1 {[%clk 0:00:09]} 77. h6 {[%clk 0:00:01]}  Kxd5 {[%clk 0:00:09]} 78. Rg7 {[%clk 0:00:02]}  Ke6 {[%clk 0:00:05]} 79. h7 {[%clk 0:00:03]}  Ke7 {[%clk 0:00:05]} 80. h8=Q {[%clk 0:00:02]} 1-0


[Site "https://www.chess.com"]

[Event "Titled Tuesday Blitz April 05 Late 2022"]
[White "Nasuta, Grzegorz"]
[Black "Bas Mas, Jose Joaquin"]
[WhiteFideId "1141686"]
[BlackFideId "22219064"]
[WhiteElo "2396"]
[BlackElo "2212"]
[Result "0-1"]
[Round "01"]
[TimeControl "180+1"]
[Date "2022.04.06"]
[WhiteClock "0:00:06"]
[BlackClock "0:00:25"]

1. Nf3 {[%clk 0:03:00]}  e6 {[%clk 0:02:55]} 2. g3 {[%clk 0:02:54]}  f5 {[%clk 0:02:55]} 3. Bg2 {[%clk 0:02:53]}  Nf6 {[%clk 0:02:55]} 4. O-O {[%clk 0:02:50]}  Be7 {[%clk 0:02:56]} 5. d3 {[%clk 0:02:50]}  O-O {[%clk 0:02:55]} 6. Nbd2 {[%clk 0:02:46]}  d6 {[%clk 0:02:39]} 7. c4 {[%clk 0:02:39]}  c5 {[%clk 0:02:33]} 8. b3 {[%clk 0:02:39]}  Nc6 {[%clk 0:02:33]} 9. Bb2 {[%clk 0:02:37]}  e5 {[%clk 0:02:31]} 10. e3 {[%clk 0:02:36]}  Qe8 {[%clk 0:02:26]} 11. a3 {[%clk 0:02:25]}  Qh5 {[%clk 0:02:22]} 12. Ne1 {[%clk 0:02:15]}  Qh6 {[%clk 0:02:14]} 13. f4 {[%clk 0:02:15]}  Ng4 {[%clk 0:02:07]} 14. Bd5+ {[%clk 0:02:12]}  Be6 {[%clk 0:01:50]} 15. Bxe6+ {[%clk 0:02:10]}  Qxe6 {[%clk 0:01:50]} 16. Qf3 {[%clk 0:02:03]}  exf4 {[%clk 0:01:36]} 17. exf4 {[%clk 0:02:03]}  Bf6 {[%clk 0:01:34]} 18. Bxf6 {[%clk 0:02:02]}  Qxf6 {[%clk 0:01:29]} 19. Ng2 {[%clk 0:01:56]}  Nd4 {[%clk 0:01:21]} 20. Qd5+ {[%clk 0:01:55]}  Kh8 {[%clk 0:01:21]} 21. Rae1 {[%clk 0:01:51]}  Rae8 {[%clk 0:01:17]} 22. Nf3 {[%clk 0:01:26]}  Nc2 {[%clk 0:00:59]} 23. Rxe8 {[%clk 0:01:03]}  Rxe8 {[%clk 0:01:00]} 24. h3 {[%clk 0:01:02]}  Nge3 {[%clk 0:00:31]} 25. Nxe3 {[%clk 0:01:01]}  Nxe3 {[%clk 0:00:30]} 26. Qxb7 {[%clk 0:00:09]}  Nxf1 {[%clk 0:00:28]} 27. Kxf1 {[%clk 0:00:09]}  Qa1+ {[%clk 0:00:27]} 28. Kf2 {[%clk 0:00:08]}  Qb2+ {[%clk 0:00:26]} 29. Kg1 {[%clk 0:00:08]}  Qc1+ {[%clk 0:00:25]} 30. Kf2 {[%clk 0:00:08]}  Qc2+ {[%clk 0:00:25]} 31. Kg1 {[%clk 0:00:06]}  Qd1+ {[%clk 0:00:25]} 0-1


[Site "https://www.chess.com"]

[Event "Titled Tuesday Blitz April 05 Late 2022"]
[White "Nilsson, Joakim"]
[Black "Ibarra Jerez, Jose Carlos"]
[WhiteFideId "1723383"]
[BlackFideId "2226332"]
[WhiteElo "2207"]
[BlackElo "2626"]
[Result "0-1"]
[Round "01"]
[TimeControl "180+1"]
[Date "2022.04.06"]
[WhiteClock "0:02:27"]
[BlackClock "0:01:40"]

1. d4 {[%clk 0:02:59]}  Nf6 {[%clk 0:02:56]} 2. Bf4 {[%clk 0:02:57]}  d5 {[%clk 0:02:50]} 3. e3 {[%clk 0:02:57]}  c5 {[%clk 0:02:49]} 4. Nc3 {[%clk 0:02:56]}  cxd4 {[%clk 0:02:42]} 5. exd4 {[%clk 0:02:55]}  Bg4 {[%clk 0:02:41]} 6. Qd2 {[%clk 0:02:54]}  Nc6 {[%clk 0:02:38]} 7. Be2 {[%clk 0:02:53]}  Bf5 {[%clk 0:02:22]} 8. Nf3 {[%clk 0:02:52]}  e6 {[%clk 0:02:22]} 9. Ne5 {[%clk 0:02:52]}  Qb6 {[%clk 0:02:03]} 10. O-O {[%clk 0:02:50]}  Qxd4 {[%clk 0:01:52]} 11. Bb5 {[%clk 0:02:32]}  Qxd2 {[%clk 0:01:50]} 12. Bxd2 {[%clk 0:02:32]}  Rc8 {[%clk 0:01:49]} 13. Nxc6 {[%clk 0:02:31]}  bxc6 {[%clk 0:01:49]} 14. Ba6 {[%clk 0:02:32]}  Rb8 {[%clk 0:01:46]} 15. Bf4 {[%clk 0:02:30]}  Rb6 {[%clk 0:01:43]} 16. Bd3 {[%clk 0:02:27]}  Bxd3 {[%clk 0:01:42]} 17. cxd3 {[%clk 0:02:28]}  Kd7 {[%clk 0:01:40]} 18. Na4 {[%clk 0:02:27]}  Rb4 {[%clk 0:01:40]} 0-1


[Site "https://www.chess.com"]